bitfinex-derivatives/quotes_ETHF0:USTF0_20250427
["timestamp","ask_amount","ask_price","bid_price","bid_amount"]
[1745730054354,8.04055,1800.0,1799.8,1.11087]
[1745730055251,1.6716,1799.9,1799.8,1.11087]
[1745730055950,6.9298,1800.0,1799.9,1.11081]
[1745730056150,8.5639,1800.0,1799.8,1.11083]
[1745730056350,6.9298,1800.0,1799.9,2.84571]
[1745730056956,3.722,1800.0,1799.9,6.51471]
[1745730057148,3.2078,1800.2,1800.1,1.11069]
[1745730057954,3.57022,1800.4,1800.2,1.11062]
[1745730058156,4.8419,1800.3,1800.1,2.84554]
[1745730058355,4.8419,1800.3,1800.2,1.7349]
[1745730058660,4.8419,1800.3,1800.2,2.84553]
[1745730058848,4.8419,1800.3,1800.2,1.7349]
[1745730059054,9.67447,1800.3,1800.2,1.7349]
[1745730059245,8.5639,1800.3,1800.0,3.17]
[1745730059554,1.59,1800.2,1799.9,4.77977]
[1745730059755,4.31851,1800.1,1799.9,6.37547]
[1745730059959,2.4029,1800.0,1799.9,2.70647]
[1745730060254,2.4029,1800.0,1799.9,1.5957]
[1745730060553,2.4029,1800.0,1799.8,3.668]
[1745730060753,0.8129,1800.0,1799.9,1.11081]
[1745730060952,0.8129,1800.0,1799.9,2.70651]
[1745730061154,4.5349,1800.0,1799.9,3.53351]
[1745730061355,4.5349,1800.0,1799.8,3.668]
[1745730061654,1.59,1799.9,1799.8,4.77887]
[1745730061854,1.59,1799.9,1799.8,6.37457]
[1745730062060,5.312,1799.9,1799.8,6.37457]
[1745730062659,3.722,1799.9,1799.8,6.37457]
[1745730063269,3.722,1799.9,1799.8,5.2637]
[1745730063463,3.722,1799.9,1799.6,0.8021]
[1745730063464,1.11091,1799.8,1799.6,4.77898]
[1745730063758,4.822,1799.7,1799.5,1.1286]
[1745730063948,1.6142,1799.6,1799.5,1.111]
[1745730064145,5.3362,1799.6,1799.5,1.111]
[1745730064353,5.3362,1799.6,1799.4,1.6489]
[1745730064551,6.1283,1799.6,1799.5,1.11106]
[1745730069860,4.5141,1799.6,1799.5,1.11106]
[1745730070062,3.722,1799.6,1799.5,1.11106]
[1745730070263,3.2078,1799.7,1799.6,1.111]
[1745730070661,3.2078,1799.7,1799.4,1.6489]
[1745730070860,3.2078,1799.7,1799.6,1.111]
[1745730071361,6.9298,1799.7,1799.6,1.111]
[1745730072856,6.9298,1799.7,1799.6,1.967]
[1745730073363,3.722,1799.7,1799.6,0.856]
[1745730073564,6.9298,1799.7,1799.6,1.967]
[1745730073757,3.722,1799.7,1799.6,1.967]
[1745730073963,3.722,1799.7,1799.6,5.635]
[1745730074159,3.2078,1799.9,1799.8,1.11087]
[1745730074960,3.2078,1799.9,1799.8,2.72407]
[1745730075163,6.9298,1799.9,1799.8,2.72407]
[1745730075661,6.9298,1799.9,1799.6,4.524]
[1745730075868,1.6435,1799.8,1799.7,1.11092]
[1745730076161,5.3655,1799.8,1799.7,2.72412]
[1745730076363,3.722,1799.8,1799.7,2.72412]
[1745730076858,3.722,1799.8,1799.7,7.72412]
[1745730077062,0.93505,1799.8,1799.7,14.65392]
[1745730077266,5.7141,1800.3,1800.2,1.11063]
[1745730077861,5.7141,1800.3,1800.0,7.004]
[1745730078066,5.7141,1800.3,1800.2,1.11063]
[1745730078271,6.9298,1800.3,1800.2,1.11063]
[1745730080166,3.722,1800.3,1800.2,6.11063]
[1745730080569,3.722,1800.3,1800.2,7.76553]
[1745730081368,1.5714,1800.6,1800.5,1.11044]
[1745730081760,4.0668,1800.7,1800.6,1.11038]
[1745730082162,9.3602,1800.7,1800.6,1.11038]
[1745730082365,7.7888,1800.7,1800.6,2.76528]
[1745730082654,6.9298,1800.7,1800.6,3.57248]
[1745730083075,3.722,1800.7,1800.6,3.57248]
[1745730083770,6.9298,1800.7,1800.6,3.57248]
[1745730087166,3.2078,1800.7,1800.6,3.57248]
[1745730087969,3.2078,1800.7,1800.5,0.0176]
[1745730087970,9.31815,1800.7,1800.5,0.0176]
[1745730088174,2.4311,1800.6,1800.5,1.12801]
[1745730088472,2.4311,1800.6,1800.5,1.12804]
[1745730088875,8.54148,1800.6,1800.5,0.0176]
[1745730089270,12.26348,1800.6,1800.5,0.0176]
[1745730089776,7.26348,1800.6,1800.5,0.0176]
[1745730090277,6.1531,1800.6,1800.5,0.0176]
[1745730090876,6.1531,1800.6,1800.5,1.12804]
[1745730091077,7.26348,1800.6,1800.5,0.0176]
[1745730091778,6.1531,1800.6,1800.5,1.12804]
[1745730092682,5.3077,1800.6,1800.5,1.12804]
[1745730093779,5.3077,1800.6,1800.5,0.0176]
[1745730093980,5.3077,1800.6,1800.5,1.12804]
[1745730095067,3.722,1800.6,1800.5,1.12804]
[1745730095271,3.722,1800.6,1800.5,2.72114]
[1745730095568,5.3142,1800.6,1800.5,2.72114]
[1745730096183,1.5922,1800.6,1800.5,2.72114]
[1745730097684,3.2078,1800.7,1800.6,1.11038]
[1745730097878,3.2078,1800.7,1800.6,3.66598]
[1745730098378,4.0667,1800.9,1800.8,1.11026]
[1745730098581,3.2078,1800.9,1800.8,1.11026]
[1745730098977,3.2078,1800.9,1800.8,1.92726]
[1745730100383,3.2078,1800.9,1800.8,5.59326]
[1745730102197,1.5972,1801.2,1800.9,2.7755]
[1745730102398,4.0651,1801.3,1801.2,1.11001]
[1745730103192,4.5793,1801.3,1801.2,3.52761]
[1745730103400,3.722,1801.3,1801.2,4.31811]
[1745730104300,5.7976,1801.5,1801.4,1.10989]
[1745730104602,5.7976,1801.5,1801.3,1.5918]
[1745730104797,1.6797,1801.4,1801.3,2.70175]
[1745730105298,5.4017,1801.4,1801.3,2.70175]
[1745730106400,3.722,1801.4,1801.3,2.70175]
[1745730107199,3.722,1801.4,1801.3,2.71935]
[1745730108296,4.0231,1801.7,1801.6,1.10976]
[1745730109101,5.7468,1801.7,1801.6,1.10976]
[1745730109396,9.4688,1801.7,1801.6,1.10976]
[1745730110098,9.4688,1801.7,1801.6,2.80316]
[1745730110498,9.4688,1801.7,1801.6,1.6934]
[1745730110902,9.4688,1801.7,1801.6,2.80316]
[1745730113002,10.5785,1801.7,1801.5,1.94631]
[1745730113199,10.5785,1801.7,1801.6,1.10976]
[1745730113200,3.722,1801.7,1801.6,1.10976]
[1745730113498,3.722,1801.7,1801.6,1.93386]
[1745730113693,3.722,1801.7,1801.6,3.66986]
[1745730116304,3.722,1801.7,1801.6,2.84576]
[1745730118901,3.722,1801.7,1801.6,7.84576]
[1745730119104,3.2078,1801.8,1801.7,1.1097]
[1745730119407,3.2078,1801.8,1801.7,6.5015]
[1745730120311,6.9298,1801.8,1801.7,4.7737]
[1745730123310,6.9298,1801.8,1801.7,3.664]
[1745730123611,6.9298,1801.8,1801.7,4.7737]
[1745730125210,9.4301,1801.8,1801.7,4.7737]
[1745730126419,8.6129,1801.8,1801.7,4.7737]
[1745730127214,6.9298,1801.8,1801.7,4.7737]
[1745730130106,0.7962,1802.3,1801.7,4.7737]
[1745730130107,3.2078,1802.0,1801.9,1.10958]
[1745730130714,3.2078,1802.0,1801.8,3.2105]
[1745730130909,4.0034,1802.0,1801.9,1.10958]
[1745730131109,6.9298,1802.0,1801.9,2.71808]
[1745730131313,8.03932,1802.0,1801.9,1.6085]
[1745730131512,6.9298,1802.0,1801.9,2.71808]
[1745730131810,8.621,1802.0,1801.9,2.71808]
[1745730132012,8.621,1802.0,1801.9,1.6085]
[1745730132219,8.621,1802.0,1801.9,1.10958]
[1745730133112,6.9298,1802.0,1801.9,2.69048]
[1745730133915,3.722,1802.0,1801.9,2.69048]
[1745730134217,3.2078,1802.2,1802.1,1.10946]
[1745730134908,3.2078,1802.2,1802.1,3.52176]
[1745730135104,4.8974,1802.4,1802.3,1.10933]
[1745730135309,3.2078,1802.4,1802.3,1.10933]
[1745730136020,4.8433,1802.4,1802.3,1.10933]
[1745730136221,4.8433,1802.4,1802.2,2.82905]
[1745730136622,4.8433,1802.4,1802.3,1.10933]
[1745730137223,8.5653,1802.4,1802.3,1.10933]
[1745730137525,6.9298,1802.4,1802.3,1.10933]
[1745730138223,9.6746,1802.4,1802.2,2.82905]
[1745730138521,8.5653,1802.4,1802.3,1.10933]
[1745730138718,8.5653,1802.4,1802.3,2.83983]
[1745730139122,9.67457,1802.4,1802.3,1.7305]
[1745730139315,9.67457,1802.4,1802.2,1.10939]
[1745730139615,1.7193,1802.3,1802.2,1.10939]
[1745730140417,1.7193,1802.3,1802.2,2.83989]
[1745730140916,6.9298,1802.4,1802.2,2.83989]
[1745730141120,6.9298,1802.4,1802.1,0.8314]
[1745730141121,3.2078,1802.4,1802.3,2.83983]
[1745730142221,6.9298,1802.4,1802.3,2.83983]
[1745730143121,3.2078,1802.4,1802.3,2.83983]
[1745730144421,2.526,1802.5,1802.3,2.83983]
[1745730144616,3.2078,1802.6,1802.5,1.10921]
[1745730145018,4.9011,1802.6,1802.5,1.10921]
[1745730145220,8.6231,1802.6,1802.5,2.72511]
[1745730145415,1.10924,1802.5,1802.3,4.7713]
[1745730145622,4.0272,1802.4,1802.3,4.7713]
[1745730145823,4.0272,1802.4,1802.3,6.3872]
[1745730146129,7.7492,1802.4,1802.3,6.3872]
[1745730147627,4.5414,1802.4,1802.3,6.3872]
[1745730148126,0.8194,1802.4,1802.3,6.3872]
[1745730148525,1.6933,1802.5,1802.4,1.10927]
[1745730148826,2.80251,1802.5,1802.4,2.80947]
[1745730149127,6.52451,1802.5,1802.4,2.80947]
[1745730149519,5.4153,1802.5,1802.4,2.80947]
[1745730150729,6.52451,1802.5,1802.4,2.80947]
[1745730151026,6.52451,1802.5,1802.4,1.10927]
[1745730151224,7.34121,1802.5,1802.4,1.10927]
[1745730151923,7.34121,1802.5,1802.4,2.73347]
[1745730153228,6.232,1802.5,1802.4,2.73347]
[1745730153629,7.34121,1802.5,1802.4,2.73347]
[1745730154928,6.232,1802.5,1802.4,2.73347]
[1745730155129,5.4153,1802.5,1802.4,2.73347]
[1745730157127,3.722,1802.5,1802.4,2.73347]
[1745730157630,3.722,1802.5,1802.4,3.56457]
[1745730158238,6.0165,1802.6,1802.4,3.56453]
[1745730159033,1.10921,1802.5,1802.4,1.6242]
[1745730159325,2.80871,1802.5,1802.4,2.73347]
[1745730159531,2.5036,1802.5,1802.4,2.73347]
[1745730160433,7.33481,1802.5,1802.4,1.6242]
[1745730160629,7.33481,1802.5,1801.7,8.7322]
[1745730160630,6.2256,1802.5,1801.7,8.7322]
[1745730160834,3.2078,1802.2,1802.1,1.10946]
[1745730161035,3.2078,1802.2,1802.1,1.95706]
[1745730161239,6.9298,1802.2,1802.1,1.95706]
[1745730162234,6.9298,1802.2,1802.1,2.82486]
[1745730163230,3.2078,1802.2,1802.1,2.82486]
[1745730165931,3.2078,1802.2,1802.1,0.8476]
[1745730166236,6.9298,1802.2,1802.1,1.95706]
[1745730166640,6.9298,1802.2,1802.1,3.59356]
[1745730167732,6.9298,1802.2,1802.1,8.59356]
[1745730167937,3.722,1802.2,1802.1,8.59356]
[1745730168137,3.2078,1802.5,1802.4,1.10927]
[1745730168741,3.2078,1802.5,1802.4,3.58847]
[1745730169143,6.9298,1802.5,1802.4,3.58847]
[1745730171643,6.9298,1802.5,1802.4,1.10927]
[1745730171943,6.9298,1802.5,1802.3,4.7703]
[1745730171944,8.03904,1802.5,1802.3,4.7703]
[1745730172137,9.69234,1802.5,1802.3,6.4125]
[1745730172845,9.69234,1802.5,1802.3,5.3032]
[1745730173045,2.4976,1802.4,1802.3,5.3032]
[1745730173238,6.2196,1802.4,1802.3,5.3032]
[1745730173545,6.2196,1802.4,1802.3,6.41253]
[1745730175946,7.32887,1802.4,1802.2,1.10938]
[1745730176141,1.6117,1802.3,1802.2,1.10939]
[1745730176340,4.8195,1802.3,1802.1,7.19102]
[1745730176641,4.8195,1802.3,1802.2,1.10939]
[1745730177241,8.5415,1802.3,1802.2,1.10939]
[1745730177547,13.5415,1802.3,1801.8,3.2078]
[1745730177845,4.3173,1802.1,1801.9,1.10958]
[1745730178044,2.3966,1802.0,1801.9,1.10958]
[1745730179042,2.3966,1802.0,1801.8,2.74839]
[1745730179244,6.1186,1802.0,1801.9,1.10958]
[1745730179445,4.5339,1802.0,1801.9,2.74838]
[1745730180951,4.5339,1802.0,1801.9,1.6388]
[1745730181147,5.64342,1802.0,1801.9,1.6388]
[1745730181346,7.22892,1802.0,1801.9,1.6388]
[1745730181856,7.22892,1802.0,1801.9,2.74838]
[1745730182752,7.22892,1802.0,1801.9,1.6388]
[1745730184047,3.722,1802.0,1801.9,2.74838]
[1745730184353,3.2078,1802.1,1801.9,2.74836]
[1745730184548,1.68,1802.0,1801.9,2.74836]
[1745730185047,2.78952,1802.0,1801.9,1.6388]
[1745730185555,1.10958,1801.9,1801.7,1.6801]
[1745730185744,2.78956,1802.0,1801.8,1.10961]
[1745730186238,2.5102,1801.9,1801.8,2.70931]
[1745730187153,6.2322,1801.9,1801.8,2.70931]
[1745730189256,2.5102,1801.9,1801.8,2.70931]
[1745730191159,1.11398728,1802.0,1801.8,2.70931]
[1745730191351,2.42526728,1802.0,1801.9,2.83338]
[1745730191557,2.42526728,1802.0,1801.9,1.7238]
[1745730191757,3.53478728,1802.0,1801.9,1.7238]
[1745730191960,0.00446728,1802.0,1801.9,2.83338]
[1745730195353,0.00446728,1802.0,1801.9,6.49438]
[1745730199164,0.00446728,1802.0,1801.9,10.21638]
[1745730199565,7.28e-06,1802.0,1801.9,15.21638]
[1745730202957,2.398,1802.7,1802.6,1.10915]
[1745730203865,0.7844,1802.7,1802.6,1.10915]
[1745730204162,2.4902,1802.7,1802.6,1.10915]
[1745730205765,3.2078,1802.7,1802.6,1.10915]
[1745730207557,3.2078,1802.7,1802.5,2.75436]
[1745730207760,3.2078,1802.7,1802.6,1.10915]
[1745730208062,6.9298,1802.7,1802.6,1.10915]
[1745730208467,8.5633,1802.7,1802.6,1.10915]
[1745730210171,8.5633,1802.7,1802.5,2.76207]
[1745730210562,2.5,1802.6,1802.5,2.76207]
[1745730212974,3.2078,1802.7,1802.6,1.10915]
[1745730213166,3.2078,1802.7,1802.6,2.76485]
[1745730214167,1.0,1803.0,1802.9,1.10896]
[1745730215263,5.579,1803.0,1802.9,1.10896]
[1745730215474,7.2355,1803.0,1802.9,1.10896]
[1745730215873,7.2355,1803.0,1802.8,2.67798]
[1745730216074,2.442,1802.9,1802.8,2.67798]
[1745730220170,6.164,1802.9,1802.8,2.67798]
[1745730220876,3.722,1802.9,1802.8,2.67798]
[1745730221279,3.722,1802.9,1802.8,1.37968]
[1745730221475,5.4584,1802.9,1802.7,1.6278]
[1745730221777,5.4584,1802.9,1802.8,1.10899]
[1745730222083,1.7364,1802.9,1802.8,1.10899]
[1745730223585,1.7364,1802.9,1802.7,1.24918]
[1745730223783,1.0,1803.0,1802.9,1.10896]
[1745730224081,1.0,1803.0,1802.9,4.76796]
[1745730224481,2.6997,1803.0,1802.9,4.76796]
[1745730225183,2.6997,1803.0,1802.9,3.46966]
[1745730225382,1.0,1803.0,1802.9,4.57862]
[1745730225884,1.0,1803.0,1802.9,6.23052]
[1745730227283,1.0,1803.0,1802.9,4.93222]
[1745730228185,1.0,1803.0,1802.9,8.65422]
[1745730229084,1.0,1803.0,1802.9,4.93222]
[1745730229279,1.0,1803.0,1802.9,3.63392]
[1745730230079,1.0,1803.0,1802.9,7.35592]
[1745730231086,1.0,1803.0,1802.9,3.63392]
[1745730237386,1.0,1803.0,1802.8,7.97478]
[1745730237684,2.4971,1802.9,1802.8,7.97478]
[1745730241090,6.2191,1802.9,1802.8,7.97478]
[1745730241592,7.32806,1802.9,1802.8,3.2078]
[1745730241788,6.2191,1802.9,1802.8,6.8648]
[1745730242293,1.10905,1802.8,1802.6,3.657]
[1745730242493,3.64125,1802.8,1802.6,3.657]
[1745730242793,3.64125,1802.8,1802.6,4.76614]
[1745730242991,1.6876,1802.7,1802.6,4.76614]
[1745730243193,5.4096,1802.7,1802.6,4.76614]
[1745730244190,0.8344,1802.9,1802.8,1.10903]
[1745730244390,2.522,1802.9,1802.8,1.10903]
[1745730244994,2.522,1802.9,1802.8,2.81193]
[1745730245188,1.0,1803.0,1802.9,1.10896]
[1745730245391,1.0,1803.0,1802.9,2.76946]
[1745730245591,2.717,1803.0,1802.9,2.76946]
[1745730246093,2.717,1803.0,1802.9,6.42746]
[1745730250600,3.2078,1803.4,1803.2,1.10877]
[1745730250790,3.2127,1803.3,1803.2,1.10877]
[1745730251186,6.9347,1803.3,1803.2,1.10877]
[1745730251793,6.9347,1803.3,1803.1,2.71703]
[1745730251994,1.6985,1803.2,1803.1,2.71703]
[1745730252194,5.4205,1803.2,1803.1,1.10883]
[1745730254094,1.6985,1803.2,1803.1,1.10883]
[1745730255100,5.4205,1803.2,1803.1,1.10883]
[1745730256502,5.4205,1803.2,1803.1,3.47273]
[1745730257102,1.6985,1803.2,1803.1,3.47273]
[1745730257703,2.5645,1803.5,1803.1,5.5717]
[1745730257904,2.5645,1803.5,1803.2,5.2419]
[1745730258204,1.6953,1803.4,1803.3,2.69362]
[1745730258404,1.6953,1803.4,1803.3,3.52082]
[1745730259197,5.4173,1803.4,1803.3,3.52082]
[1745730259802,5.4173,1803.4,1803.3,1.10872]
[1745730261005,5.4173,1803.4,1803.3,2.74372]
[1745730262294,5.4173,1803.4,1803.3,1.10872]
[1745730262700,5.4173,1803.4,1803.3,2.74372]
[1745730264010,3.722,1803.4,1803.3,2.74372]
[1745730267202,1.6408,1803.5,1803.4,1.10866]
[1745730267407,1.6408,1803.5,1803.4,3.62506]
[1745730268315,3.722,1803.5,1803.4,3.62506]
[1745730269307,1.6561,1803.7,1803.6,1.10853]
[1745730269714,1.6561,1803.7,1803.5,3.657]
[1745730269903,0.7857,1803.6,1803.5,3.657]
[1745730270103,4.5077,1803.6,1803.5,4.76559]
[1745730274899,6.0798,1803.6,1803.5,4.76559]
[1745730275812,6.0798,1803.6,1803.5,3.657]
[1745730276013,6.0798,1803.6,1803.5,4.76559]
[1745730276815,7.18833,1803.6,1803.5,3.657]
[1745730277115,6.0798,1803.6,1803.5,3.657]
[1745730277313,6.0798,1803.6,1803.4,1.95584]
[1745730277314,9.2876,1803.6,1803.2,1.10875]
[1745730277500,3.48031,1803.5,1803.2,4.76375]
[1745730277705,1.5823,1803.4,1803.2,4.76375]
[1745730278105,0.7849,1803.3,1803.2,4.76375]
[1745730278718,2.3556,1803.3,1803.1,7.97262]
[1745730278905,0.7894,1803.2,1803.1,7.97262]
[1745730279102,6.0821,1803.2,1803.1,7.97262]
[1745730279307,6.0821,1803.2,1803.1,4.76482]
[1745730279812,6.0821,1803.2,1802.8,4.0606]
[1745730280124,1.5707,1803.1,1802.9,1.10894]
[1745730281217,5.2927,1803.1,1803.0,1.1089]
[1745730282617,5.2927,1803.1,1802.7,4.5088]
[1745730282917,1.10897,1802.9,1802.7,4.76505]
[1745730283109,3.57995,1802.8,1802.6,3.2078]
[1745730283310,1.6646,1802.7,1802.6,4.76513]
[1745730283519,2.5104,1802.7,1802.6,4.76513]
[1745730284112,6.2324,1802.7,1802.6,4.76513]
[1745730284822,5.3866,1802.7,1802.6,4.76513]
[1745730287217,1.6646,1802.7,1802.6,4.76513]
[1745730287810,1.6646,1802.7,1802.6,3.656]
[1745730288218,5.3866,1802.7,1802.6,3.656]
[1745730290115,5.3866,1802.7,1802.6,4.76515]
[1745730291119,1.6646,1802.7,1802.6,4.76515]
[1745730291519,0.8063,1802.8,1802.7,1.10909]
[1745730291821,1.5954,1802.9,1802.8,1.10903]
[1745730292215,4.0769,1803.0,1802.9,1.10896]
[1745730292407,3.2078,1803.0,1802.9,1.10896]
[1745730293123,6.9298,1803.0,1802.9,1.10896]
[1745730293813,8.6196,1803.0,1802.9,1.10896]
[1745730297015,6.9298,1803.0,1802.9,1.10896]
[1745730297620,6.7165,1803.0,1802.9,1.10896]
[1745730298317,6.7165,1803.0,1802.7,0.8695]
[1745730298515,4.38762,1802.9,1802.7,0.8695]
[1745730298715,1.6242,1802.8,1802.7,0.8695]
[1745730299324,5.3462,1802.8,1802.7,1.97859]
[1745730299626,5.1329,1802.8,1802.7,1.97859]
[1745730300119,6.24193,1802.8,1802.7,0.8695]
[1745730300325,1.10909,1802.7,1802.6,3.656]
[1745730300725,5.0,1802.7,1802.4,3.2078]
[1745730301021,1.10927,1802.4,1802.3,3.657]
[1745730301226,1.10923,1802.5,1802.3,3.657]
[1745730301425,1.10927,1802.4,1802.3,3.657]
[1745730301726,0.89597,1802.4,1802.2,5.95097]
[1745730302126,4.61797,1802.4,1802.2,4.31717]
[1745730302628,3.722,1802.4,1802.2,4.31717]
[1745730302828,1.6323,1802.3,1802.2,5.93297]
[1745730303227,5.3543,1802.3,1802.2,5.93297]
[1745730303731,5.141,1802.3,1802.2,5.93297]
[1745730304333,5.141,1802.3,1802.2,4.31719]
[1745730304831,6.25033,1802.3,1802.2,3.2078]
[1745730305032,1.10942,1802.2,1802.0,3.657]
[1745730305333,1.10946,1802.1,1802.0,3.657]
[1745730305725,0.89616,1802.1,1802.0,3.657]
[1745730306233,4.61816,1802.1,1801.8,3.27673]
[1745730306422,3.722,1802.1,1801.8,4.85173]
[1745730306624,3.722,1802.1,1802.0,1.10952]
[1745730307134,5.4065,1802.1,1801.9,2.68453]
[1745730307330,5.4065,1802.1,1801.8,3.27673]
[1745730307331,1.10958,1801.9,1801.8,2.42543]
[1745730307631,0.89628,1801.9,1801.8,2.42543]
[1745730307828,6.00186,1802.0,1801.8,2.42543]
[1745730308030,1.6845,1801.9,1801.8,2.42543]
[1745730308332,6.51608,1801.9,1801.8,2.42543]
[1745730311630,7.34128,1801.9,1801.8,2.42543]
[1745730312735,1.10976,1801.6,1801.5,4.5073]
[1745730313034,1.10972,1801.7,1801.5,5.6171]
[1745730313228,5.3226,1801.6,1801.5,7.3534]
[1745730313429,5.3226,1801.6,1801.5,6.2436]
[1745730313733,6.43236,1801.6,1801.5,6.2436]
[1745730314331,5.3226,1801.6,1801.5,7.35343]
[1745730316233,3.722,1801.6,1801.5,7.35343]
[1745730317130,4.0492,1801.8,1801.6,1.10972]
[1745730317339,1.4205,1802.1,1801.9,1.10955]
[1745730317536,3.47192,1802.2,1801.9,4.31735]
[1745730317838,3.47192,1802.2,1802.0,2.83389]
[1745730317839,2.3625,1802.2,1802.0,2.83389]
[1745730318136,6.0845,1802.2,1802.1,1.638]
[1745730318438,4.5051,1802.2,1802.1,1.638]
[1745730318837,5.61449,1802.2,1802.1,1.638]
[1745730319027,5.61449,1802.2,1802.0,1.96231]
[1745730319225,4.5051,1802.2,1802.0,3.60031]
[1745730319741,5.6145,1802.2,1802.0,3.60031]
[1745730320638,4.5051,1802.2,1802.1,1.10946]
[1745730320837,5.6145,1802.2,1802.0,3.60028]
[1745730321539,4.5051,1802.2,1802.1,1.10946]
[1745730321839,5.6145,1802.2,1802.0,3.60027]
[1745730322147,4.5051,1802.2,1802.0,3.60027]
[1745730322340,4.5051,1802.2,1802.1,1.10946]
[1745730322841,4.5051,1802.2,1802.0,3.60027]
[1745730323143,5.6145,1802.2,1802.0,3.60027]
[1745730323743,4.5051,1802.2,1802.1,1.10946]
[1745730323945,4.5051,1802.2,1802.1,2.82116]
[1745730324144,4.5051,1802.2,1802.1,3.68466]
[1745730324445,4.5051,1802.2,1802.1,6.89246]
[1745730326633,5.61449,1802.2,1802.1,6.89246]
[1745730327144,5.61449,1802.2,1802.1,5.783]
[1745730327847,5.61449,1802.2,1802.1,4.0713]
[1745730328045,5.61449,1802.2,1802.1,3.2078]
[1745730329846,5.61449,1802.2,1802.0,3.54497]
[1745730330242,4.5051,1802.2,1802.0,2.4355]
[1745730330446,10.48642,1802.2,1801.6,4.0084]
[1745730330747,1.10968,1801.8,1801.7,1.1097]
[1745730331149,4.83168,1801.8,1801.7,1.1097]
[1745730331448,3.722,1801.8,1801.6,6.76433]
[1745730331647,4.83166,1801.8,1801.6,6.76433]
[1745730332149,1.1097,1801.7,1801.6,5.6546]
[1745730332447,0.8478,1801.7,1801.6,3.2078]
[1745730332648,1.9575,1801.7,1801.6,3.2078]
[1745730332843,0.8478,1801.7,1801.6,3.2078]
[1745730333045,5.6795,1801.7,1801.6,3.2078]
[1745730334244,4.5698,1801.7,1801.6,4.31756]
[1745730334452,5.6795,1801.7,1801.6,3.2078]
[1745730335249,5.6795,1801.7,1801.6,4.9064]
[1745730336951,7.3984,1801.7,1801.6,4.9064]
[1745730337451,1.10976,1801.6,1801.5,3.657]
[1745730337647,1.10983,1801.5,1801.4,0.8112]
[1745730337844,1.97557,1801.5,1801.3,1.10995]
[1745730338045,1.7189,1801.4,1801.3,1.10995]
[1745730338347,1.7189,1801.4,1801.3,2.70015]
[1745730338653,2.82879,1801.4,1801.3,2.70015]
[1745730339054,5.4409,1801.4,1801.3,2.70015]
[1745730340653,6.55079,1801.4,1801.3,2.70015]
[1745730341550,5.4409,1801.4,1801.3,2.70015]
[1745730342156,1.7189,1801.4,1801.3,2.70015]
[1745730343358,2.82879,1801.4,1801.3,2.70015]
[1745730343552,1.7189,1801.4,1801.3,2.70015]
[1745730344158,5.4409,1801.4,1801.3,2.70015]
[1745730345659,3.722,1801.4,1801.3,2.70015]
[1745730346360,1.5866,1801.6,1801.5,1.10983]
[1745730346551,0.8478,1801.7,1801.6,1.10976]
[1745730346752,0.8565,1801.7,1801.6,2.70476]
[1745730346953,2.4431,1801.7,1801.6,2.70476]
[1745730347153,6.1651,1801.7,1801.6,2.70476]
[1745730347554,7.2748,1801.7,1801.6,2.70476]
[1745730348262,3.7307,1801.7,1801.6,2.70476]
[1745730352165,0.0087,1801.7,1801.6,2.70476]
[1745730353164,3.7307,1801.7,1801.6,2.70476]
[1745730354162,0.0087,1801.7,1801.6,2.70476]
[1745730358263,1e-08,1801.7,1801.6,7.70476]
[1745730360370,1e-08,1801.7,1801.6,2.70476]
[1745730362456,4.31705,1802.5,1801.9,2.77394]
[1745730362663,1.567,1802.3,1802.2,1.10934]
[1745730362962,1.567,1802.3,1802.2,2.82014]
[1745730363272,0.8292,1802.4,1802.3,1.10933]
[1745730363469,0.8292,1802.4,1802.3,7.70803]
[1745730364265,4.5512,1802.4,1802.3,7.70803]
[1745730364460,3.722,1802.4,1802.3,7.70803]
[1745730365059,1.5854,1802.6,1802.5,1.10921]
[1745730365462,1.5854,1802.6,1802.3,4.8879]
[1745730365664,0.8287,1802.5,1802.3,5.17838]
[1745730365864,2.436,1802.4,1802.3,5.17838]
[1745730366567,2.436,1802.4,1802.3,6.77708]
[1745730367066,6.158,1802.4,1802.3,6.77708]
[1745730370872,7.26727,1802.4,1802.3,3.2078]
[1745730373373,6.158,1802.4,1802.3,4.31713]
[1745730373668,7.26727,1802.4,1802.3,3.2078]
[1745730377875,11.158,1802.4,1802.0,1.1095]
[1745730378073,1.7387,1802.3,1802.0,1.1095]
[1745730378372,1.10944,1802.2,1802.0,1.1095]
[1745730378567,2.5933,1802.1,1802.0,1.1095]
[1745730379075,6.3153,1802.1,1802.0,1.1095]
[1745730379677,6.3153,1802.1,1802.0,1.10952]
[1745730379876,3.722,1802.1,1802.0,1.10952]
[1745730380175,3.65181,1802.5,1802.3,1.10928]
[1745730380369,1.688,1802.4,1802.3,4.31708]
[1745730381177,5.41,1802.4,1802.3,4.31708]
[1745730384979,3.722,1802.4,1802.3,4.31708]
[1745730385172,3.3026,1802.8,1802.6,1.10912]
[1745730385476,4.41164,1802.8,1802.6,1.10912]
[1745730385775,1.6506,1802.7,1802.6,1.10912]
[1745730386173,5.3726,1802.7,1802.5,2.70157]
[1745730387076,1.6506,1802.6,1802.5,2.70157]